Cogmind - Beta 9.4 @@@ ROGUE MODE // 2020.01.15 @ 08:45:34 Player: alice_fexa Result: Destroyed by D-53 Grenadier with Mini Grenade Launcher Performance ------------- Evolutions (0) 0 Regions Visited (2) 400 Robots Destroyed (20) 100 Value Destroyed (461) 461 Prototype IDs (2) 40 Alien Tech Used (0) 0 Bonus (0) 0 TOTAL SCORE: 1001 Bonus ------- None Cogmind --------- Core Integrity 0/250 Matter 290/300 Energy 66/100 System Corruption 0% Temperature Cool (217) Movement Core (600) Ox11 Location -10/Mines Parts ------- > --- POWER (1) -------- (None) > --- PROPULSION (2) --- (None) > --- UTILITY (2) ------ Large Storage Unit Large Storage Unit > --- WEAPON (2) ------- Beam Rifle > --- INVENTORY (16) --- Ion Engine Light Ion Engine Light Ion Engine Light Ion Engine Light Ion Engine Light Treads Light Treads Light Treads Cooling System Cooling System Spread Laser Peak State ------------ > --- POWER ------------ Light Ion Engine > --- PROPULSION ------- Light Treads Wheel > --- UTILITY ---------- Small Storage Unit Large Storage Unit > --- WEAPON ----------- Beam Rifle Light Assault Rifle > --- INVENTORY -------- Light Ion Engine Light Ion Engine Light Treads Light Treads Light Treads Improved Heat Sink Beam Rifle Beam Rifle Beam Rifle Spread Laser Spread Laser Spread Laser [Rating: 10] Favorites ----------- Power Light Ion Engine Engine Light Ion Engine Propulsion Light Treads Treads Light Treads Wheel Wheel Utility Large Storage Unit Device Tractor Beam Storage Large Storage Unit Weapon Light Assault Rifle Energy Gun Beam Rifle Ballistic Gun Light Assault Rifle Build | -11 -10 -10 ------- Run | Scr Mat Min Slots Evolved . | . . . Power . | . . . Propulsion . | . . . Utility . | . . . Weapon . | . . . Parts Attached 33 | 6 24 3 Power 6 | 1 5 . Engine 6 | 1 5 . Core . | . . . Reactor . | . . . Propulsion 8 | 2 6 . Treads 4 | 1 3 . Leg . | . . . Wheel 4 | 1 3 . Hover . | . . . Flight . | . . . Utility 6 | 1 5 . Device 1 | . 1 . Storage 5 | 1 4 . Processor . | . . . Hackware . | . . . Protection . | . . . Artifact . | . . . Weapon 13 | 2 8 3 Energy Gun 6 | . 3 3 Energy Cannon . | . . . Ballistic Gun 7 | 2 5 . Ballistic Cannon . | . . . Launcher . | . . . Special Weapon . | . . . Impact Weapon . | . . . Slashing Weapon . | . . . Piercing Weapon . | . . . Special Melee Weapon . | . . . Unidentified Prototypes . | . . . Parts Lost 11 | . 4 7 Power 2 | . 1 1 Propulsion 2 | . . 2 Utility . | . . . Weapon 7 | . 3 4 Highest Loss Streak 7 | . 2 7 Average Slot Usage (%) 97 | . 98 79 Engine 13 | . 13 12 Treads 13 | . 14 8 Wheel 13 | . 14 6 Storage 27 | . 27 28 Energy Gun 8 | . 7 16 Ballistic Gun 19 | . 19 8 Naked Turns . | . . . Heaviest Build 41 | 11 39 41 Greatest Support 20 | 20 20 10 Greatest Overweight (x) 13 | 1 3 13 Average Overweight (x) 1 | . 1 4 Largest Inventory Capacity 16 | 6 16 16 Average Capacity 12 | 5 11 16 Most Carried 14 | 4 14 14 Average Carried 9 | 2 10 12 Final Capacity 16 | 6 16 16 Final Carried 14 | 4 14 11 Class Distribution -------------------- 94% | Mutant 5% | Scavenger-Mutant Dominant Class ---------------- Mutant | -10/Materials Mutant | -10/Mines Resources | -11 -10 -10 ----------- Run | Scr Mat Min Matter Collected 613 | 251 362 . Remotely . | . . . Salvage Created 674 | . 593 81 Parts 37 | . 35 2 Haulers Intercepted 1 | . 1 . Recyclers Shooed 1 | . 1 . Parts Field Recycled . | . . . Retrieved Matter . | . . . Parts Self-Destructed . | . . . Prevented . | . . . Kills | -11 -10 -10 ------- Run | Scr Mat Min Combat Hostiles Destroyed 15 | . 13 2 Guns 15 | . 13 2 Classes Destroyed 5 | . 5 . Hauler 1 | . 1 . Recycler 2 | . 2 . Watcher 2 | . 2 . Swarmer 6 | . 6 . Grunt 9 | . 7 2 Best Kill Streak 4 | . 4 1 Combat Bots Only 3 | . 3 1 Max Kills in Single Turn 1 | . 1 1 Gunslinging . | . . . Exploded . | . . . Melee . | . . . Uniques/NPCs Destroyed . | . . . Combat | -11 -10 -10 -------- Run | Scr Mat Min Damage Taken 1228 | . 689 539 Core 254 | . 47 207 Absorbed by Shields . | . . . Core Remaining (%) 100 | 100 . . Volleys Fired 101 | . 83 18 Largest 2 | . 2 2 Hottest 121 | . 76 121 Shots Fired 193 | . 164 29 Gun 193 | . 164 29 Cannon . | . . . Launcher . | . . . Special . | . . . Kinetic 142 | . 133 9 Thermal 50 | . 30 20 Explosive . | . . . Electromagnetic 1 | . 1 . Robot Hit Streak 14 | . 14 14 Robot Miss Streak 4 | . 4 3 Penetration Max . | . . . Secondary Targets 3 | . 2 1 Max Gunslinging Chain 1 | . 1 1 Shots Hit Robots 137 | . 111 26 Core Hits 57 | . 40 17 Critical Hits 1 | . 1 . Critical Kills . | . . . Critical Parts Destroyed 1 | . 1 . Melee Attacks . | . . . Impact . | . . . Slashing . | . . . Piercing . | . . . Sneak Attacks . | . . . Combat Hostiles . | . . . Follow-up Attacks . | . . . Damage Inflicted 1290 | . 1006 284 Guns 1290 | . 1006 284 Cannons . | . . . Explosions . | . . . Melee . | . . . Ramming . | . . . Kinetic 703 | . 658 45 Thermal 587 | . 348 239 Explosive . | . . . Electromagnetic . | . . . Impact . | . . . Slashing . | . . . Piercing . | . . . Highest Corruption . | . . . Average Corruption . | . . . Corruption Purged . | . . . Overload Shots . | . . . Overflow Damage . | . . . Projectiles . | . . . Explosions . | . . . Melee . | . . . Knockbacks . | . . . Impact . | . . . Kinetic . | . . . Secondary . | . . . Self-Inflicted Damage . | . . . Shots . | . . . Rammed . | . . . Targets Rammed . | . . . Kicked . | . . . Crushed . | . . . Highest Temperature 394 | . 292 394 Average Temperature 140 | . 100 226 Received Heat Transfer 345 | . 216 129 Effects 2 | . 1 1 Energy Bleed 1 | . 1 . Matter Decay 1 | . . 1 Siege Activations . | . . . Robots Corrupted . | . . . Combat Hostiles . | . . . Parts Fried . | . . . Impact Corruptions . | . . . Robots Melted . | . . . Combat Hostiles . | . . . Parts Melted 2 | . 2 . Heat Transferred 1312 | . 888 424 Parts Sabotaged . | . . . Parts Stolen . | . . . Parts Stripped . | . . . Power Chain Reactions . | . . . Missiles Intercepted . | . . . Alert | -11 -10 -10 ------- Run | Scr Mat Min Peak Influence 197 | . 197 30 Average Influence 63 | . 70 14 Maximum Alert Level . | . . . Low Security (%) 100 | 100 100 100 Level 1 . | . . . Level 2 . | . . . Level 3 . | . . . Level 4 . | . . . Level 5 . | . . . High Security . | . . . Max Security . | . . . Squads Dispatched 1 | . 1 . Investigation . | . . . Extermination . | . . . Reinforcement 1 | . 1 . Assault . | . . . Garrison . | . . . Intercept . | . . . Construction Impeded . | . . . Haulers Reinforced . | . . . Stealth | -11 -10 -10 --------- Run | Scr Mat Min Distress Signals 2 | . 1 1 Communications Jammed . | . . . Distress Signals . | . . . Times Spotted 29 | . 22 7 Peak Tracking Total 5 | . 5 5 Tactical Retreats 1 | . . 1 Traps | -11 -10 -10 ------- Run | Scr Mat Min Traps Triggered 1 | . 1 . Indirectly . | . . . Trap Hack Attempts . | . . . Triggered . | . . . Disarmed . | . . . Reprogrammed . | . . . Reused . | . . . Traps Extracted . | . . . Installed . | . . . Triggered . | . . . Machines | -11 -10 -10 ---------- Run | Scr Mat Min Machines Disabled 1 | . 1 . Max in Single Turn 1 | . 1 . Machines Sabotaged . | . . . Garrisons Compromised . | . . . Overloaded Fab Kills . | . . . Fab Network Shutdowns . | . . . Hacking | -11 -10 -10 --------- Run | Scr Mat Min Machines Accessed 5 | . 5 . Terminals 5 | . 5 . Fabricators . | . . . Repair Stations . | . . . Recycling Units . | . . . Scanalyzers . | . . . Garrison Access . | . . . Total Hacks 16 | . 16 . Successful 9 | . 9 . Failed 7 | . 7 . Catastrophic 2 | . 2 . Database Lockouts . | . . . Manual 7 | . 7 . Terminals 16 | . 16 . Fabricators . | . . . Repair Stations . | . . . Recycling Units . | . . . Scanalyzers . | . . . Garrison Access . | . . . Terminal Hacks 5 | . 5 . Prototype ID Bank 1 | . 1 . Unreport Threat 1 | . 1 . Locate Traps 1 | . 1 . Zone Layout 2 | . 2 . Fabricator Hacks . | . . . Repair Station Hacks . | . . . Recycling Unit Hacks . | . . . Scanalyzer . | . . . Garrison Access Hacks . | . . . Unauthorized Hacks 9 | . 9 . Terminals 4 | . 4 . Botnet 4 | . 4 . Fabricators . | . . . Repair Stations . | . . . Recycling Units . | . . . Scanalyzers . | . . . Garrison Access . | . . . Data Cores Recovered . | . . . Used . | . . . Hacking Detections 5 | . 5 . Full Trace Events . | . . . Feedback Events . | . . . Feedback Blocked . | . . . Robot Schematics Acquired . | . . . Robots Built . | . . . Matter . | . . . Time . | . . . Total Robot Build Rating . | . . . Part Schematics Acquired . | . . . Parts Built . | . . . Matter . | . . . Time . | . . . Total Part Build Rating . | . . . Parts Repaired . | . . . Time . | . . . Parts Recycled . | . . . Recycled Matter . | . . . Retrieved Matter . | . . . Retrieved Components . | . . . Parts Scanalyzed . | . . . Part Schematics Acquired . | . . . Parts Damaged . | . . . Bothacking | -11 -10 -10 ------------ Run | Scr Mat Min Used RIF Installer . | . . . Robots Hacked . | . . . Non-combat . | . . . Combat . | . . . Robot Hacks Applied . | . . . Relay Couplers Released . | . . . Robots Rewired . | . . . Allies Hacked . | . . . Hacks Repelled . | . . . Allies | -11 -10 -10 -------- Run | Scr Mat Min Total Allies . | . . . Largest Group . | . . . Highest-Rated Group . | . . . Highest-Rated Ally . | . . . Total Orders . | . . . Ally Attacks . | . . . Total Damage . | . . . Kills . | . . . Allies Corrupted . | . . . Allies Melted . | . . . Intel | -11 -10 -10 ------- Run | Scr Mat Min Robot Analysis Total . | . . . Derelict Logs Recovered . | . . . Drone Launches . | . . . Drone Recoveries . | . . . Exploration | -11 -10 -10 ------------- Run | Scr Mat Min Turns Passed 1066 | 41 951 74 Spaces Moved 643 | 32 602 9 Core 2 | 1 . 1 Treads 16 | 2 14 . Legs . | . . . Wheels 625 | 29 588 8 Hover . | . . . Flight . | . . . Fastest Speed 50 | 50 90 110 Average Speed 103 | 89 103 175 Slowest Speed 700 | 160 160 700 Overloaded Moves . | . . . Propulsion Burnouts . | . . . Robots Hopped . | . . . Cave-ins Triggered . | . . . Exploration Rate (%) 28 | 4 71 11 Regions Visited 2 Branch Regions 1 Pre-discovered Areas . | . . . Known Exits Taken . | . . . Unknown Exits Taken 2 | 1 1 . Scrap Searched . | . . . Spaces Dug . | . . . Terrain Destroyed . | . . . Melee . | . . . Projectile . | . . . AOE . | . . . Actions | -11 -10 -10 --------- Run | Scr Mat Min Total 878 | 41 797 40 Wait 60 | . 50 10 Move 641 | 31 601 9 Hop . | . . . Pick Up 23 | 4 19 . Fast Attach 12 | 6 6 . Attach 7 | . 4 3 Detach 1 | . 1 . Swap 14 | . 14 . Drop 19 | . 19 . Fire 101 | . 83 18 Melee . | . . . Ram . | . . . Kick . | . . . Crush . | . . . Escape Stasis . | . . . Rewire . | . . . Trap . | . . . Miscellaneous . | . . . Route ------- -11/Scrapyard -10/Materials (discovered 4 exits: [*Mat x2] / [*Min x2]) -10/Mines History --------- Turn | Location | Event 23 | -11/Scrapyard | Discovered new exit (range 16) 42 | -11/Scrapyard | Entered Materials 172 | -10/Materials | Discovered new exit (range 12) 489 | -10/Materials | Discovered new exit (range 16) 549 | -10/Materials | Discovered new exit (range 12) 607 | -10/Materials | Build established: Mutant 863 | -10/Materials | Discovered new exit (range 16) 993 | -10/Materials | Entered Mines 997 | -10/Mines | Assembled infested the area 1053 | -10/Mines | Core integrity fell below 50% 1060 | -10/Mines | Core integrity fell below 20% 1067 | -10/Mines | Destroyed by D-53 Grenadier with Mini Grenade Launcher Last Messages --------------- 01039_ The unstable cave ceiling collapses. 01039_ U-05 Engineer lays Concrete. 01039_ K-01 Serf collects debris. 01040_ The unstable cave ceiling collapses. 01040_ U-05 Engineer lays Concrete. 01040_ as-51194 destroyed. 01042_ U-05 Engineer builds a Wall. 01043_ R-06 Scavenger collects Wheel. 01044_ Overheating: Matter decay (-72). 01044_ Beam Rifle destroyed. 01048_ U-05 Engineer destroyed. 01050_ Lgt. Ion Engine destroyed. 01051_ The unstable cave ceiling collapses. 01052_ R-06 Scavenger destroyed. 01053_ The unstable cave ceiling collapses. 01053_ as-93755 destroyed. 01054_ The unstable cave ceiling collapses. 01063_ Spread Laser destroyed. 01065_ The unstable cave ceiling collapses. 01065_ U-05 Engineer lays Concrete. Map ----- +----------------------------------------------------+ | ????????????????????????????????????????????????? | | ????????????????????????????????????????????????? | | ????????????????????????????????????????????????? | | ????????????????????????????????????????????????? | | ????????????????????????????????????????????????? | | ????????????????????????????????????????????????? | | ??????????????????? ???????????????????????????? | | ??????????????????# ???????????????????????????? | | ?????????????????? ???????????????????????????? | | ?????????????????? ???????????????????????????? | | ??????????????????# ???????????????????????????? | | ??????????????????# ???????????????????????????? | | ??????????????????# ???????????????????????????? | | ??????????????????# #???????????#??????????????? | | ?????????????????## #?????????? #??????????????? | | ???????????##???## ?????????? ???????????????? | | ??????????## ### ?????##?? #???????????????? | | ??????????# #????? ?? #???????????????? | | ??????????# #????? ## #???????????????? | | ???????????? ###??? # #???????????????? | | ????????????????# ####% # ####????????????? | | ?????????????????# u =[ # ###??????????? | | ?????????????????## % #%=# #?# ???????? | | ??????????????????# # ! # ??????? | | ??????????????????# !% ??????? | | ??????????????????# @ = = ??????? | | ??????????????????## d % ??????? | | ???????????????????### # ??????? | | ?????????????????????# # # ???????? | | ?????????????????????## # ???????? | | ??????????????????????########## ????????? | | ?????????????????????????????????# ????????? | | ???????????????????????????????????## ????????? | | ?????????????????????????????????????? ?????????? | | ????????????????????????????????????????????????? | | ????????????????????????????????????????????????? | | ????????????????????????????????????????????????? | | ????????????????????????????????????????????????? | | ????????????????????????????????????????????????? | | ????????????????????????????????????????????????? | | ????????????????????????????????????????????????? | | ????????????????????????????????????????????????? | | ????????????????????????????????????????????????? | | ????????????????????????????????????????????????? | | ????????????????????????????????????????????????? | | ????????????????????????????????????????????????? | | ????????????????????????????????????????????????? | | ????????????????????????????????????????????????? | | ????????????????????????????????????????????????? | | ????????????????????????????????????????????????? | +----------------------------------------------------+ Best States ------------- Heat Dissipation 25 Energy Generation 10 Energy Capacity 250 Matter Stores 300 Matter Capacity 300 Sight Range 16 Terrain Scan Density 10 Evasion (%) 42 Recoil Reduction 1 Item Schematics ----------------- None Robot Schematics ------------------ None Fabricated ------------ Nothing Alien Tech Used ----------------- None Achievements -------------- None Challenges ------------ None Game ------ Seed ContainmentGhostMagmablaster Manual? 0 Play Time 00:07:18 Cumulative 644.3 hours Start 2020.01.15 @ 08:38:57 End 2020.01.15 @ 08:45:34 Sessions 1 Manual Loads 0 Difficulty Rogue Special Mode None Game No. 576 Rogue 536 Adventurer 40 Explorer 0 Win Type - Total 46 Types 32/0/12/2/0/0/0 Lore% 88 Gallery% 90 Achievement% 69 Wizard Run 0 Options --------- ASCII 0 Keyboard 0 Movement Numpad Keybinds 0 Fullscreen 0 Font 16/Terminus Map View 76x50 Tactical HUD 1 Map Filters NONE Filters NONE Steam 1 RUN: 435eddb3-b412-4a2e-b67c-8eb67106c974